[Event "Early-Titled-Tuesday-Blitz-December-26-2023"]
[Site "Chess.com"]
[Date "2023.12.26"]
[Round "11"]
[White "szefru"]
[Black "Nasrin_Babayeva"]
[Result "1-0"]
[WhiteElo "2270"]
[BlackElo "1853"]
[TimeControl "180+1"]
[EndTime "10:03:29 PST"]
[Termination "szefru won on time"]

1. e4 {[%clk 0:03:00.9]} 1... Nc6 {[%clk 0:02:59.8]} 2. Nf3 {[%clk 0:03:00.2]}
2... d6 {[%clk 0:02:59.9]} 3. Bb5 {[%clk 0:02:59.9]} 3... Bg4 {[%clk 0:02:59.4]}
4. h3 {[%clk 0:02:58.9]} 4... Bh5 {[%clk 0:02:57.1]} 5. g4 {[%clk 0:02:58.5]}
5... Bg6 {[%clk 0:02:57.1]} 6. Nc3 {[%clk 0:02:59]} 6... Nf6 {[%clk 0:02:56.6]}
7. d3 {[%clk 0:02:58.6]} 7... a6 {[%clk 0:02:56.6]} 8. Bxc6+ {[%clk 0:02:58.4]}
8... bxc6 {[%clk 0:02:57.5]} 9. Nh4 {[%clk 0:02:59]} 9... e5 {[%clk 0:02:55]}
10. Bg5 {[%clk 0:02:57.8]} 10... Be7 {[%clk 0:02:52.8]} 11. Nxg6 {[%clk
0:02:56.4]} 11... hxg6 {[%clk 0:02:53.7]} 12. Be3 {[%clk 0:02:55.7]} 12... d5
{[%clk 0:02:50.4]} 13. exd5 {[%clk 0:02:48.7]} 13... cxd5 {[%clk 0:02:51.3]} 14.
d4 {[%clk 0:02:49.2]} 14... exd4 {[%clk 0:02:37.9]} 15. Bxd4 {[%clk 0:02:50.1]}
15... c5 {[%clk 0:02:14.2]} 16. Bxf6 {[%clk 0:02:48.6]} 16... Bxf6 {[%clk
0:02:15.1]} 17. Nxd5 {[%clk 0:02:49.2]} 17... Bxb2 {[%clk 0:02:13.2]} 18. Rb1
{[%clk 0:02:35.2]} 18... Bd4 {[%clk 0:01:52.9]} 19. Qe2+ {[%clk 0:02:22.9]}
19... Kd7 {[%clk 0:01:35.3]} 20. Kf1 {[%clk 0:02:10.6]} 20... Rb8 {[%clk
0:00:52.8]} 21. Kg2 {[%clk 0:02:04.4]} 21... Rxb1 {[%clk 0:00:34.9]} 22. Rxb1
{[%clk 0:02:05.3]} 22... Kc6 {[%clk 0:00:30.8]} 23. Ne7+ {[%clk 0:01:58.7]}
23... Kd6 {[%clk 0:00:26.9]} 24. Rb7 {[%clk 0:01:52.1]} 24... Qa8 {[%clk
0:00:20.4]} 25. Qe4 {[%clk 0:01:47.4]} 1-0

[Event "Early-Titled-Tuesday-Blitz-December-26-2023"]
[Site "Chess.com"]
[Date "2023.12.26"]
[Round "11"]
[White "mariofs"]
[Black "dennisodessa"]
[Result "0-1"]
[WhiteElo "2212"]
[BlackElo "2537"]
[TimeControl "180+1"]
[EndTime "10:03:48 PST"]
[Termination "dennisodessa won by resignation"]

1. d4 {[%clk 0:03:00.9]} 1... e6 {[%clk 0:02:59.8]} 2. Bf4 {[%clk 0:02:58.5]}
2... Nf6 {[%clk 0:03:00.2]} 3. Nc3 {[%clk 0:02:58.2]} 3... d5 {[%clk 0:02:58.6]}
4. Nb5 {[%clk 0:02:58.5]} 4... Na6 {[%clk 0:02:57.8]} 5. e3 {[%clk 0:02:58.6]}
5... Bd7 {[%clk 0:02:57.5]} 6. a4 {[%clk 0:02:58]} 6... Be7 {[%clk 0:02:56]} 7.
Nf3 {[%clk 0:02:58.1]} 7... Nh5 {[%clk 0:02:50.2]} 8. Bd3 {[%clk 0:02:50.2]}
8... O-O {[%clk 0:02:46.8]} 9. Ne5 {[%clk 0:02:48.7]} 9... Nxf4 {[%clk
0:02:45.5]} 10. exf4 {[%clk 0:02:49.6]} 10... Nb4 {[%clk 0:02:41.8]} 11. Be2
{[%clk 0:02:33.4]} 11... a6 {[%clk 0:02:31.5]} 12. Nc3 {[%clk 0:02:33.1]} 12...
c5 {[%clk 0:02:31.3]} 13. O-O {[%clk 0:02:25.5]} 13... cxd4 {[%clk 0:02:27.8]}
14. Qxd4 {[%clk 0:02:26.4]} 14... Nxc2 {[%clk 0:02:27.2]} 15. Qd2 {[%clk
0:02:21.4]} 15... Nxa1 {[%clk 0:02:26.5]} 16. Rxa1 {[%clk 0:02:22.3]} 16... Bb4
{[%clk 0:02:08.8]} 17. Qe3 {[%clk 0:02:14.9]} 17... Rc8 {[%clk 0:02:04.6]} 18.
Qg3 {[%clk 0:02:02.9]} 18... f6 {[%clk 0:01:57.6]} 19. Ng4 {[%clk 0:02:00.9]}
19... Qc7 {[%clk 0:01:51.9]} 20. Bd3 {[%clk 0:01:45.6]} 20... Bxc3 {[%clk
0:01:40.7]} 21. bxc3 {[%clk 0:01:43.4]} 21... Qxc3 {[%clk 0:01:41.6]} 22. Rf1
{[%clk 0:01:23.4]} 22... e5 {[%clk 0:01:25]} 23. Nxf6+ {[%clk 0:00:41.9]} 23...
Rxf6 {[%clk 0:01:22]} 24. fxe5 {[%clk 0:00:42.8]} 24... Rff8 {[%clk 0:01:14]}
25. h4 {[%clk 0:00:34.6]} 25... Bf5 {[%clk 0:01:11.7]} 26. Bxf5 {[%clk
0:00:29.7]} 26... Rxf5 {[%clk 0:01:12.6]} 27. Qg4 {[%clk 0:00:28.2]} 0-1

[Event "Early-Titled-Tuesday-Blitz-December-26-2023"]
[Site "Chess.com"]
[Date "2023.12.26"]
[Round "11"]
[White "Jospem"]
[Black "stollenmonster"]
[Result "1-0"]
[WhiteElo "3082"]
[BlackElo "2929"]
[TimeControl "180+1"]
[EndTime "10:03:51 PST"]
[Termination "Jospem won by resignation"]

1. e4 {[%clk 0:03:00.9]} 1... c5 {[%clk 0:02:59.8]} 2. Nf3 {[%clk 0:03:01.4]}
2... Nf6 {[%clk 0:03:00.2]} 3. Nc3 {[%clk 0:02:54.9]} 3... d5 {[%clk 0:03:00]}
4. exd5 {[%clk 0:02:55.7]} 4... Nxd5 {[%clk 0:03:00.8]} 5. Bb5+ {[%clk
0:02:52.4]} 5... Bd7 {[%clk 0:02:59.9]} 6. Ne5 {[%clk 0:02:37.7]} 6... e6 {[%clk
0:02:59.3]} 7. Qf3 {[%clk 0:02:35.8]} 7... Qf6 {[%clk 0:02:58.9]} 8. Nxd7 {[%clk
0:02:32.4]} 8... Nxd7 {[%clk 0:02:58.5]} 9. Qe2 {[%clk 0:02:28.6]} 9... O-O-O
{[%clk 0:02:56.7]} 10. Bxd7+ {[%clk 0:02:17.7]} 10... Rxd7 {[%clk 0:02:56.1]}
11. Ne4 {[%clk 0:02:18.2]} 11... Qg6 {[%clk 0:02:55.8]} 12. g3 {[%clk
0:02:04.5]} 12... f5 {[%clk 0:02:35.7]} 13. Nc3 {[%clk 0:02:04.4]} 13... f4
{[%clk 0:02:36.4]} 14. d3 {[%clk 0:02:02.2]} 14... Bd6 {[%clk 0:02:32]} 15. Bd2
{[%clk 0:01:59.3]} 15... Rf8 {[%clk 0:02:25.6]} 16. O-O-O {[%clk 0:01:57.6]}
16... Rdf7 {[%clk 0:02:22.9]} 17. Rde1 {[%clk 0:01:55.5]} 17... fxg3 {[%clk
0:02:19.1]} 18. fxg3 {[%clk 0:01:56.4]} 18... Kd7 {[%clk 0:02:10.3]} 19. Ne4
{[%clk 0:01:56.6]} 19... Qf5 {[%clk 0:02:06]} 20. d4 {[%clk 0:01:41.1]} 20...
cxd4 {[%clk 0:01:57]} 21. Qb5+ {[%clk 0:01:40.6]} 21... Kc7 {[%clk 0:01:57.4]}
22. Qc4+ {[%clk 0:01:23.3]} 22... Kd7 {[%clk 0:01:55.2]} 23. Qxd4 {[%clk
0:01:21]} 23... Rc8 {[%clk 0:00:50]} 24. Kb1 {[%clk 0:01:20.7]} 24... Be5 {[%clk
0:00:39.3]} 25. Nc5+ {[%clk 0:01:00]} 25... Kd6 {[%clk 0:00:39.1]} 26. Rxe5
{[%clk 0:00:55.8]} 1-0

[Event "Early-Titled-Tuesday-Blitz-December-26-2023"]
[Site "Chess.com"]
[Date "2023.12.26"]
[Round "11"]
[White "isaak2009"]
[Black "defenceboy"]
[Result "1-0"]
[WhiteElo "2640"]
[BlackElo "2749"]
[TimeControl "180+1"]
[EndTime "10:04:02 PST"]
[Termination "isaak2009 won by resignation"]

1. e4 {[%clk 0:03:00.9]} 1... c5 {[%clk 0:02:57.4]} 2. Nf3 {[%clk 0:03:00.6]}
2... Nc6 {[%clk 0:02:57.6]} 3. Bb5 {[%clk 0:03:00.3]} 3... e6 {[%clk 0:02:55.4]}
4. Bxc6 {[%clk 0:02:59.6]} 4... bxc6 {[%clk 0:02:55.3]} 5. d3 {[%clk 0:02:58.8]}
5... Ne7 {[%clk 0:02:55.7]} 6. e5 {[%clk 0:02:59.2]} 6... f6 {[%clk 0:02:53.9]}
7. O-O {[%clk 0:02:54.6]} 7... fxe5 {[%clk 0:02:51.6]} 8. Nxe5 {[%clk 0:02:54]}
8... d6 {[%clk 0:02:51.1]} 9. Nf3 {[%clk 0:02:53.5]} 9... e5 {[%clk 0:02:45.9]}
10. Re1 {[%clk 0:02:52.8]} 10... Ng6 {[%clk 0:02:42.6]} 11. c3 {[%clk
0:02:48.5]} 11... Be7 {[%clk 0:02:36.8]} 12. d4 {[%clk 0:02:47]} 12... cxd4
{[%clk 0:02:26.8]} 13. cxd4 {[%clk 0:02:47.9]} 13... Bg4 {[%clk 0:02:25.4]} 14.
h3 {[%clk 0:02:37]} 14... Bxf3 {[%clk 0:02:04.9]} 15. Qxf3 {[%clk 0:02:37.9]}
15... Qb6 {[%clk 0:02:02.3]} 16. dxe5 {[%clk 0:01:58.1]} 16... Nxe5 {[%clk
0:02:02.1]} 17. Qg3 {[%clk 0:01:57.9]} 17... O-O {[%clk 0:02:00.2]} 18. Nc3
{[%clk 0:01:58.4]} 18... Rf7 {[%clk 0:01:48.9]} 19. Rb1 {[%clk 0:01:49.6]} 19...
Raf8 {[%clk 0:01:44.5]} 20. Be3 {[%clk 0:01:49]} 20... Qa5 {[%clk 0:01:43.9]}
21. Ne4 {[%clk 0:01:45.7]} 21... Nc4 {[%clk 0:01:19.2]} 22. Bd4 {[%clk
0:01:40.4]} 22... d5 {[%clk 0:01:18.9]} 23. Ng5 {[%clk 0:01:30.9]} 23... Bxg5
{[%clk 0:01:06.6]} 24. Qxg5 {[%clk 0:01:31.8]} 24... Qxa2 {[%clk 0:01:00.4]} 25.
Ra1 {[%clk 0:01:16.7]} 25... Qb3 {[%clk 0:01:00.2]} 26. Re7 {[%clk 0:01:16.3]}
26... Qd3 {[%clk 0:00:44.9]} 27. Bxg7 {[%clk 0:01:02.2]} 27... Qg6 {[%clk
0:00:31.3]} 28. Qxg6 {[%clk 0:00:57.9]} 28... hxg6 {[%clk 0:00:31.8]} 29. Bxf8
{[%clk 0:00:58.7]} 1-0

[Event "Early-Titled-Tuesday-Blitz-December-26-2023"]
[Site "Chess.com"]
[Date "2023.12.26"]
[Round "11"]
[White "PolinaYanch"]
[Black "LeoWin2012"]
[Result "0-1"]
[WhiteElo "1757"]
[BlackElo "2211"]
[TimeControl "180+1"]
[EndTime "10:04:06 PST"]
[Termination "LeoWin2012 won by resignation"]

1. d4 {[%clk 0:03:00.9]} 1... e6 {[%clk 0:03:00.9]} 2. c4 {[%clk 0:03:00.3]}
2... d5 {[%clk 0:03:01.8]} 3. Nf3 {[%clk 0:02:59.5]} 3... dxc4 {[%clk
0:03:01.8]} 4. g3 {[%clk 0:02:56.1]} 4... c5 {[%clk 0:03:01.5]} 5. Bg2 {[%clk
0:02:55.7]} 5... Nc6 {[%clk 0:02:59.4]} 6. Be3 {[%clk 0:02:39.7]} 6... cxd4
{[%clk 0:02:56.3]} 7. Nxd4 {[%clk 0:02:39.4]} 7... Nxd4 {[%clk 0:02:56.5]} 8.
Qxd4 {[%clk 0:02:37.1]} 8... Nf6 {[%clk 0:02:57.4]} 9. Qxd8+ {[%clk 0:02:36.2]}
9... Kxd8 {[%clk 0:02:58.3]} 10. O-O {[%clk 0:02:36.1]} 10... Bd6 {[%clk
0:02:56.1]} 11. Rd1 {[%clk 0:02:34.9]} 11... Ke7 {[%clk 0:02:54.9]} 12. Nd2
{[%clk 0:02:33.8]} 12... Nd5 {[%clk 0:02:49.4]} 13. Nxc4 {[%clk 0:02:23.9]}
13... Nxe3 {[%clk 0:02:42.5]} 14. Nxe3 {[%clk 0:02:18]} 14... Rd8 {[%clk
0:02:41.2]} 15. Rac1 {[%clk 0:02:15.6]} 15... Rb8 {[%clk 0:02:32.9]} 16. Nc4
{[%clk 0:02:11.1]} 16... Bc7 {[%clk 0:02:25.9]} 17. Rxd8 {[%clk 0:01:59.6]}
17... Bxd8 {[%clk 0:02:26.8]} 18. Ne5 {[%clk 0:01:52.8]} 18... Bb6 {[%clk
0:02:21.3]} 19. Kf1 {[%clk 0:01:42.1]} 19... f6 {[%clk 0:02:16]} 20. Nd3 {[%clk
0:01:41.2]} 20... Bd7 {[%clk 0:02:12.8]} 21. e3 {[%clk 0:01:11.7]} 21... Bb5
{[%clk 0:02:10.2]} 22. Ke2 {[%clk 0:01:11.7]} 22... Rd8 {[%clk 0:02:08.7]} 23.
Rd1 {[%clk 0:01:10]} 23... e5 {[%clk 0:02:08.3]} 24. Be4 {[%clk 0:01:02.5]}
24... g6 {[%clk 0:02:07.8]} 25. g4 {[%clk 0:01:02.8]} 25... Ke6 {[%clk
0:02:07.3]} 26. Ke1 {[%clk 0:00:52.4]} 26... f5 {[%clk 0:02:04.4]} 27. gxf5+
{[%clk 0:00:51.6]} 27... gxf5 {[%clk 0:02:05.3]} 28. Nc5+ {[%clk 0:00:40.8]}
28... Ke7 {[%clk 0:01:49.4]} 29. a4 {[%clk 0:00:18.4]} 29... Rxd1+ {[%clk
0:01:45]} 30. Kxd1 {[%clk 0:00:17.6]} 30... Bxc5 {[%clk 0:01:45.9]} 31. Bxf5
{[%clk 0:00:13.2]} 31... Bxa4+ {[%clk 0:01:45.5]} 32. Kd2 {[%clk 0:00:13.5]}
32... Bc6 {[%clk 0:01:46.4]} 33. Kd3 {[%clk 0:00:13.3]} 33... Bb6 {[%clk
0:01:47.3]} 34. Bxh7 {[%clk 0:00:13.1]} 34... Kf6 {[%clk 0:01:47.3]} 35. h4
{[%clk 0:00:11.6]} 35... Kg7 {[%clk 0:01:47]} 36. Bf5 {[%clk 0:00:10.9]} 36...
Kh6 {[%clk 0:01:47]} 37. f4 {[%clk 0:00:08.7]} 37... exf4 {[%clk 0:01:46.4]} 38.
exf4 {[%clk 0:00:09]} 38... Kh5 {[%clk 0:01:47.1]} 39. Be4 {[%clk 0:00:06.4]}
39... Kxh4 {[%clk 0:01:46.6]} 40. Bxc6 {[%clk 0:00:05.8]} 40... bxc6 {[%clk
0:01:47.5]} 41. Ke4 {[%clk 0:00:06.4]} 41... Kg4 {[%clk 0:01:47.7]} 42. Ke5
{[%clk 0:00:06.6]} 42... Bc7+ {[%clk 0:01:47.1]} 43. Ke4 {[%clk 0:00:05.5]}
43... Bxf4 {[%clk 0:01:48]} 0-1

[Event "Early-Titled-Tuesday-Blitz-December-26-2023"]
[Site "Chess.com"]
[Date "2023.12.26"]
[Round "11"]
[White "GMT4114"]
[Black "tylityli"]
[Result "0-1"]
[WhiteElo "2011"]
[BlackElo "2235"]
[TimeControl "180+1"]
[EndTime "10:04:20 PST"]
[Termination "tylityli won on time"]

1. e4 {[%clk 0:03:00.9]} 1... e5 {[%clk 0:02:59.5]} 2. Bc4 {[%clk 0:02:59.3]}
2... Nf6 {[%clk 0:02:59]} 3. d3 {[%clk 0:02:59.1]} 3... c6 {[%clk 0:02:58.5]} 4.
Nf3 {[%clk 0:02:58]} 4... d5 {[%clk 0:02:58.3]} 5. Bb3 {[%clk 0:02:56.6]} 5...
Bd6 {[%clk 0:02:57.2]} 6. Nc3 {[%clk 0:02:53.6]} 6... dxe4 {[%clk 0:02:53.8]} 7.
Ng5 {[%clk 0:02:47]} 7... O-O {[%clk 0:02:49.4]} 8. Ncxe4 {[%clk 0:02:35.4]}
8... Nxe4 {[%clk 0:02:47.6]} 9. Nxe4 {[%clk 0:02:34.9]} 9... Bc7 {[%clk
0:02:45.4]} 10. Qh5 {[%clk 0:02:24.3]} 10... Qe7 {[%clk 0:02:01.4]} 11. Bg5
{[%clk 0:02:21.4]} 11... Qd7 {[%clk 0:01:57.5]} 12. h3 {[%clk 0:01:55.2]} 12...
Qf5 {[%clk 0:01:52.4]} 13. g4 {[%clk 0:01:52.6]} 13... Qg6 {[%clk 0:01:52.5]}
14. Qh4 {[%clk 0:01:49.6]} 14... h6 {[%clk 0:01:52.5]} 15. Be3 {[%clk
0:01:43.5]} 15... Be6 {[%clk 0:01:46.1]} 16. Bxe6 {[%clk 0:01:23.9]} 16... fxe6
{[%clk 0:01:47]} 17. O-O-O {[%clk 0:01:17.5]} 17... Nd7 {[%clk 0:01:41.8]} 18.
Rhg1 {[%clk 0:01:05.3]} 18... Bb6 {[%clk 0:01:28.4]} 19. Rde1 {[%clk 0:00:55.1]}
19... Bxe3+ {[%clk 0:01:25.1]} 20. Rxe3 {[%clk 0:00:56]} 20... Rf4 {[%clk
0:01:21]} 21. Qg3 {[%clk 0:00:17.7]} 21... Raf8 {[%clk 0:01:19.6]} 22. Rg2
{[%clk 0:00:15.6]} 22... Nf6 {[%clk 0:01:17.9]} 23. Nxf6+ {[%clk 0:00:10.1]}
23... Qxf6 {[%clk 0:01:16.7]} 24. Kd1 {[%clk 0:00:07.3]} 24... Rxf2 {[%clk
0:01:10.3]} 25. Rxf2 {[%clk 0:00:08.2]} 25... Qxf2 {[%clk 0:01:10.3]} 26. Qxf2
{[%clk 0:00:08.6]} 26... Rxf2 {[%clk 0:01:09.8]} 27. Rxe5 {[%clk 0:00:08.7]}
27... Kf7 {[%clk 0:01:10.1]} 28. a4 {[%clk 0:00:01.9]} 28... Rf3 {[%clk
0:01:06.4]} 0-1

[Event "Early-Titled-Tuesday-Blitz-December-26-2023"]
[Site "Chess.com"]
[Date "2023.12.26"]
[Round "11"]
[White "ilushka"]
[Black "mightysmasher"]
[Result "0-1"]
[WhiteElo "2477"]
[BlackElo "2598"]
[TimeControl "180+1"]
[EndTime "10:04:21 PST"]
[Termination "mightysmasher won by resignation"]

1. Nf3 {[%clk 0:03:00.8]} 1... d5 {[%clk 0:02:54]} 2. g3 {[%clk 0:03:01]} 2...
Nf6 {[%clk 0:02:52.1]} 3. Bg2 {[%clk 0:03:01.5]} 3... e6 {[%clk 0:02:52.6]} 4.
c4 {[%clk 0:03:01.5]} 4... Be7 {[%clk 0:02:51.3]} 5. d4 {[%clk 0:03:01.7]} 5...
O-O {[%clk 0:02:51.5]} 6. Qc2 {[%clk 0:03:02]} 6... b6 {[%clk 0:02:49.8]} 7. O-O
{[%clk 0:02:58.5]} 7... Bb7 {[%clk 0:02:49.3]} 8. Ne5 {[%clk 0:02:58.4]} 8...
Nbd7 {[%clk 0:02:49.1]} 9. cxd5 {[%clk 0:02:54.7]} 9... Nxe5 {[%clk 0:02:45.2]}
10. dxe5 {[%clk 0:02:54.5]} 10... Nxd5 {[%clk 0:02:44.8]} 11. a3 {[%clk
0:02:47.7]} 11... c5 {[%clk 0:02:42.1]} 12. Rd1 {[%clk 0:02:46.4]} 12... Qe8
{[%clk 0:02:37.2]} 13. Nc3 {[%clk 0:02:43.3]} 13... Rd8 {[%clk 0:02:33.8]} 14.
Bd2 {[%clk 0:02:31.2]} 14... Qd7 {[%clk 0:02:19.6]} 15. e4 {[%clk 0:02:10.4]}
15... Nxc3 {[%clk 0:02:17.1]} 16. Bxc3 {[%clk 0:02:08.2]} 16... Qc7 {[%clk
0:02:15.8]} 17. a4 {[%clk 0:02:01.4]} 17... a6 {[%clk 0:02:12.7]} 18. h4 {[%clk
0:01:54.4]} 18... h6 {[%clk 0:02:11.3]} 19. f4 {[%clk 0:01:50.5]} 19... Qc6
{[%clk 0:02:06.3]} 20. h5 {[%clk 0:01:45.9]} 20... c4 {[%clk 0:01:59.2]} 21. Kh2
{[%clk 0:01:41.4]} 21... Rxd1 {[%clk 0:01:43.3]} 22. Rxd1 {[%clk 0:01:40.6]}
22... b5 {[%clk 0:01:43.4]} 23. axb5 {[%clk 0:01:39.8]} 23... axb5 {[%clk
0:01:43.3]} 24. Qe2 {[%clk 0:01:25.7]} 24... b4 {[%clk 0:01:41.4]} 25. Bd4
{[%clk 0:01:25.7]} 25... Rd8 {[%clk 0:01:35.8]} 26. Be3 {[%clk 0:01:04.8]} 26...
Rxd1 {[%clk 0:01:32.9]} 27. Qxd1 {[%clk 0:01:05.7]} 27... c3 {[%clk 0:01:32.6]}
28. bxc3 {[%clk 0:01:05.5]} 28... bxc3 {[%clk 0:01:32.5]} 29. f5 {[%clk
0:00:53.7]} 29... exf5 {[%clk 0:01:30.6]} 30. e6 {[%clk 0:00:32.4]} 30... fxe6
{[%clk 0:01:18.3]} 31. Bd4 {[%clk 0:00:25.6]} 31... c2 {[%clk 0:01:16.2]} 32.
Qc1 {[%clk 0:00:26]} 32... Bg5 {[%clk 0:01:15]} 33. Qa3 {[%clk 0:00:12.6]} 33...
c1=Q {[%clk 0:01:11.3]} 34. Qe7 {[%clk 0:00:12.8]} 34... Bxe7 {[%clk 0:01:10.7]}
0-1

[Event "Early-Titled-Tuesday-Blitz-December-26-2023"]
[Site "Chess.com"]
[Date "2023.12.26"]
[Round "11"]
[White "ProfessorChess101"]
[Black "OneTrickPony_82"]
[Result "0-1"]
[WhiteElo "2594"]
[BlackElo "2493"]
[TimeControl "180+1"]
[EndTime "10:04:25 PST"]
[Termination "OneTrickPony_82 won by resignation"]

1. e4 {[%clk 0:03:00.3]} 1... e5 {[%clk 0:03:00]} 2. Nf3 {[%clk 0:02:59.7]} 2...
Nc6 {[%clk 0:03:00.5]} 3. Bb5 {[%clk 0:02:59]} 3... a6 {[%clk 0:03:00.9]} 4. Ba4
{[%clk 0:02:58.9]} 4... Nf6 {[%clk 0:03:01.3]} 5. O-O {[%clk 0:02:58.5]} 5...
Be7 {[%clk 0:03:01.5]} 6. d3 {[%clk 0:02:59]} 6... b5 {[%clk 0:03:01.6]} 7. Bb3
{[%clk 0:02:58.9]} 7... d6 {[%clk 0:03:02.1]} 8. a3 {[%clk 0:02:57.5]} 8... Na5
{[%clk 0:03:00.7]} 9. Ba2 {[%clk 0:02:57.1]} 9... c5 {[%clk 0:03:00.9]} 10. Nc3
{[%clk 0:02:57.7]} 10... Nc6 {[%clk 0:02:57]} 11. Bg5 {[%clk 0:02:56.5]} 11...
Be6 {[%clk 0:02:55.6]} 12. Bxf6 {[%clk 0:02:50.2]} 12... Bxf6 {[%clk 0:02:54.9]}
13. Nd5 {[%clk 0:02:50.6]} 13... g6 {[%clk 0:02:41.3]} 14. c3 {[%clk 0:02:44.5]}
14... Bg7 {[%clk 0:02:41.2]} 15. b4 {[%clk 0:02:44.2]} 15... Ne7 {[%clk
0:02:37.6]} 16. a4 {[%clk 0:02:39.9]} 16... Nxd5 {[%clk 0:02:34.5]} 17. Bxd5
{[%clk 0:02:28.3]} 17... Bxd5 {[%clk 0:02:34.5]} 18. exd5 {[%clk 0:02:29.2]}
18... c4 {[%clk 0:02:08.4]} 19. axb5 {[%clk 0:02:23.1]} 19... axb5 {[%clk
0:02:08.6]} 20. Rxa8 {[%clk 0:02:24]} 20... Qxa8 {[%clk 0:02:08.6]} 21. dxc4
{[%clk 0:02:24.9]} 21... bxc4 {[%clk 0:02:08.8]} 22. Nd2 {[%clk 0:02:25.6]}
22... Qxd5 {[%clk 0:02:07.3]} 23. Qa4+ {[%clk 0:02:25.4]} 23... Ke7 {[%clk
0:02:03.9]} 24. Qa7+ {[%clk 0:02:14.4]} 24... Ke6 {[%clk 0:02:03.1]} 25. Nf3
{[%clk 0:02:12.2]} 25... Bh6 {[%clk 0:01:56.7]} 26. Re1 {[%clk 0:02:05.4]} 26...
Ra8 {[%clk 0:01:50.6]} 27. Qc7 {[%clk 0:02:01.6]} 27... Kf6 {[%clk 0:01:44.9]}
28. b5 {[%clk 0:01:52.2]} 28... Ra3 {[%clk 0:01:39.5]} 29. b6 {[%clk 0:01:17.7]}
29... Rb3 {[%clk 0:01:39.6]} 30. Qd8+ {[%clk 0:01:17.7]} 30... Kg7 {[%clk
0:01:38.1]} 31. Nxe5 {[%clk 0:01:17.1]} 31... Qxe5 {[%clk 0:01:35.6]} 32. Rf1
{[%clk 0:01:04.1]} 32... Bg5 {[%clk 0:01:28.6]} 33. Qc7 {[%clk 0:00:59.5]} 33...
Qc5 {[%clk 0:01:27.9]} 34. Qd7 {[%clk 0:00:47.2]} 34... Qxb6 {[%clk 0:01:26.7]}
35. Qg4 {[%clk 0:00:47]} 35... Bf6 {[%clk 0:01:21.3]} 36. Qxc4 {[%clk
0:00:45.7]} 36... Rxc3 {[%clk 0:01:19.2]} 37. Qg4 {[%clk 0:00:45.3]} 37... h5
{[%clk 0:01:17.4]} 38. Qe4 {[%clk 0:00:44.5]} 38... Qc5 {[%clk 0:01:16.7]} 39.
Qf4 {[%clk 0:00:41.6]} 39... Be5 {[%clk 0:01:12]} 40. Qd2 {[%clk 0:00:39]} 40...
Rc2 {[%clk 0:01:12.4]} 41. Qd1 {[%clk 0:00:36.7]} 41... Bd4 {[%clk 0:01:10.1]}
42. Qf3 {[%clk 0:00:30.3]} 42... Rxf2 {[%clk 0:01:05.4]} 43. Rxf2 {[%clk
0:00:28.7]} 43... Qc1+ {[%clk 0:01:03.2]} 0-1

[Event "Early-Titled-Tuesday-Blitz-December-26-2023"]
[Site "Chess.com"]
[Date "2023.12.26"]
[Round "11"]
[White "missponyo10"]
[Black "NovakRatko"]
[Result "0-1"]
[WhiteElo "2247"]
[BlackElo "2425"]
[TimeControl "180+1"]
[EndTime "10:04:26 PST"]
[Termination "NovakRatko won by checkmate"]

1. e4 {[%clk 0:03:00.9]} 1... d5 {[%clk 0:02:59.7]} 2. exd5 {[%clk 0:02:58.4]}
2... c6 {[%clk 0:03:00]} 3. dxc6 {[%clk 0:02:57.9]} 3... Nxc6 {[%clk 0:02:55.4]}
4. Nf3 {[%clk 0:02:57.9]} 4... e5 {[%clk 0:02:52.7]} 5. d3 {[%clk 0:02:57.2]}
5... Bc5 {[%clk 0:02:51.8]} 6. Be2 {[%clk 0:02:56.5]} 6... f5 {[%clk 0:02:52.3]}
7. O-O {[%clk 0:02:55.8]} 7... Nf6 {[%clk 0:02:52.8]} 8. Bg5 {[%clk 0:02:52.1]}
8... O-O {[%clk 0:02:52.1]} 9. c3 {[%clk 0:02:49.3]} 9... a5 {[%clk 0:02:51.6]}
10. Nbd2 {[%clk 0:02:48.3]} 10... Be6 {[%clk 0:02:50.9]} 11. Nb3 {[%clk
0:02:44.3]} 11... Bd6 {[%clk 0:02:47.4]} 12. d4 {[%clk 0:02:42.5]} 12... e4
{[%clk 0:02:47.4]} 13. Nfd2 {[%clk 0:02:38.2]} 13... a4 {[%clk 0:02:43.3]} 14.
Nc1 {[%clk 0:02:34.5]} 14... Qc7 {[%clk 0:02:37.4]} 15. Bxf6 {[%clk 0:02:29.6]}
15... Bxh2+ {[%clk 0:02:36.2]} 16. Kh1 {[%clk 0:02:27.2]} 16... Rxf6 {[%clk
0:02:37.1]} 17. g3 {[%clk 0:02:08.7]} 17... Bxg3 {[%clk 0:02:36.6]} 18. fxg3
{[%clk 0:02:09.6]} 18... Qxg3 {[%clk 0:02:34.8]} 19. Bh5 {[%clk 0:02:04.3]}
19... Rh6 {[%clk 0:02:30.3]} 20. Qe2 {[%clk 0:01:58.5]} 20... Bf7 {[%clk
0:02:10.6]} 21. Qg2 {[%clk 0:01:53.5]} 21... Rxh5+ {[%clk 0:02:06.7]} 22. Kg1
{[%clk 0:01:53.4]} 22... Qe3+ {[%clk 0:02:07.1]} 23. Qf2 {[%clk 0:01:50.2]}
23... Rg5+ {[%clk 0:02:01.3]} 24. Kh2 {[%clk 0:01:49.7]} 24... Qxf2+ {[%clk
0:01:54.4]} 25. Rxf2 {[%clk 0:01:50.6]} 25... e3 {[%clk 0:01:54.9]} 26. Re2
{[%clk 0:01:48.5]} 26... exd2 {[%clk 0:01:54.6]} 27. Rxd2 {[%clk 0:01:49.3]}
27... a3 {[%clk 0:01:53.8]} 28. b3 {[%clk 0:01:47.5]} 28... Rd8 {[%clk
0:01:46.7]} 29. Ne2 {[%clk 0:01:45.9]} 29... Rd6 {[%clk 0:01:46.7]} 30. Ng3
{[%clk 0:01:42.3]} 30... Rh6+ {[%clk 0:01:44.3]} 31. Kg2 {[%clk 0:01:42.8]}
31... Rhg6 {[%clk 0:01:44.8]} 32. Rd3 {[%clk 0:01:41.5]} 32... f4 {[%clk
0:01:44.6]} 33. d5 {[%clk 0:01:41.3]} 33... Rxg3+ {[%clk 0:01:43.1]} 34. Rxg3
{[%clk 0:01:40.6]} 34... Rxg3+ {[%clk 0:01:43.5]} 35. Kh2 {[%clk 0:01:41.5]}
35... Bxd5 {[%clk 0:01:44]} 36. Rd1 {[%clk 0:01:40.3]} 36... Bxb3 {[%clk
0:01:36]} 37. axb3 {[%clk 0:01:39.6]} 37... Rxc3 {[%clk 0:01:36.3]} 38. b4
{[%clk 0:01:38.4]} 38... Nxb4 {[%clk 0:01:34.7]} 39. Rd8+ {[%clk 0:01:38.1]}
39... Kf7 {[%clk 0:01:34.4]} 40. Rd7+ {[%clk 0:01:39]} 40... Kf6 {[%clk
0:01:34.2]} 41. Rxb7 {[%clk 0:01:39.9]} 41... a2 {[%clk 0:01:34.3]} 42. Rxb4
{[%clk 0:01:40.4]} 42... a1=Q {[%clk 0:01:33.5]} 43. Rxf4+ {[%clk 0:01:41.3]}
43... Kg5 {[%clk 0:01:33.1]} 44. Rf2 {[%clk 0:01:35.8]} 44... Qa3 {[%clk
0:01:17.8]} 45. Rg2+ {[%clk 0:01:34.9]} 45... Kh4 {[%clk 0:01:17.7]} 46. Rf2
{[%clk 0:01:30.5]} 46... Rh3+ {[%clk 0:01:16.4]} 47. Kg2 {[%clk 0:01:29.4]}
47... Qg3+ {[%clk 0:01:16.4]} 48. Kf1 {[%clk 0:01:29.7]} 48... Rh1+ {[%clk
0:01:16.1]} 49. Ke2 {[%clk 0:01:30]} 49... Qe5+ {[%clk 0:01:15.9]} 50. Kf3
{[%clk 0:01:29.9]} 50... g5 {[%clk 0:01:02.1]} 51. Rh2+ {[%clk 0:01:23.8]} 51...
Qxh2 {[%clk 0:01:01.6]} 52. Ke4 {[%clk 0:01:23.8]} 52... Qf4+ {[%clk 0:01:01.1]}
53. Kd5 {[%clk 0:01:23.8]} 53... Rd1+ {[%clk 0:01:01.3]} 54. Ke6 {[%clk
0:01:24.7]} 54... Re1+ {[%clk 0:01:00.5]} 55. Kd7 {[%clk 0:01:24.6]} 55... Qd2+
{[%clk 0:01:00.8]} 56. Kc6 {[%clk 0:01:25.5]} 56... Rc1+ {[%clk 0:01:00.9]} 57.
Kb5 {[%clk 0:01:26.4]} 57... Qb2+ {[%clk 0:01:01.4]} 58. Ka6 {[%clk 0:01:27.1]}
58... Ra1# {[%clk 0:01:01.8]} 0-1